[Event "Late-Titled-Tuesday-Blitz-June-04-2024"]
[Site "Chess.com"]
[Date "2024.06.04"]
[Round "5"]
[White "JaackCamel"]
[Black "mostafa_sakha"]
[Result "1-0"]
[WhiteElo "2246"]
[BlackElo "2392"]
[TimeControl "180+1"]
[EndTime "14:55:04 PDT"]
[Termination "JaackCamel won on time"]

1. d4 {[%clk 0:03:00.9]} 1... Nf6 {[%clk 0:02:59.6]} 2. c4 {[%clk 0:03:00.3]}
2... e6 {[%clk 0:03:00.1]} 3. Nc3 {[%clk 0:02:59.7]} 3... Bb4 {[%clk 0:03:00.3]}
4. Qc2 {[%clk 0:02:59.6]} 4... O-O {[%clk 0:03:00.2]} 5. a3 {[%clk 0:02:59.3]}
5... Bxc3+ {[%clk 0:03:00.5]} 6. Qxc3 {[%clk 0:02:59.3]} 6... d5 {[%clk
0:03:01.4]} 7. Nf3 {[%clk 0:02:58.3]} 7... dxc4 {[%clk 0:03:01.5]} 8. Qxc4
{[%clk 0:02:58]} 8... b6 {[%clk 0:03:02]} 9. Bg5 {[%clk 0:02:57.3]} 9... Ba6
{[%clk 0:03:01.9]} 10. Qc2 {[%clk 0:02:56.3]} 10... Nbd7 {[%clk 0:03:00.5]} 11.
e3 {[%clk 0:02:55.9]} 11... Bxf1 {[%clk 0:03:00.4]} 12. Kxf1 {[%clk 0:02:55.9]}
12... h6 {[%clk 0:02:56.6]} 13. Bh4 {[%clk 0:02:53.4]} 13... c5 {[%clk 0:02:56]}
14. Rd1 {[%clk 0:02:50.5]} 14... Rc8 {[%clk 0:02:18.8]} 15. d5 {[%clk
0:02:50.1]} 15... exd5 {[%clk 0:02:09.4]} 16. Rxd5 {[%clk 0:02:45.4]} 16... Qc7
{[%clk 0:01:54.9]} 17. Rd1 {[%clk 0:02:32.4]} 17... Qb7 {[%clk 0:01:42.3]} 18.
Ke2 {[%clk 0:01:51.8]} 18... Qa6+ {[%clk 0:01:20.5]} 19. Qd3 {[%clk 0:01:48.4]}
19... c4 {[%clk 0:01:20.2]} 20. Qd4 {[%clk 0:01:07]} 20... Rfe8 {[%clk
0:00:30.7]} 21. Ke1 {[%clk 0:00:55.3]} 21... Re4 {[%clk 0:00:29.5]} 22. Qc3
{[%clk 0:00:52.4]} 22... g5 {[%clk 0:00:16.2]} 23. Bg3 {[%clk 0:00:51.6]} 23...
b5 {[%clk 0:00:15.8]} 24. Rd6 {[%clk 0:00:49.8]} 24... Rc6 {[%clk 0:00:14.6]}
25. Rd4 {[%clk 0:00:44.8]} 25... Nc5 {[%clk 0:00:12.4]} 26. Rd8+ {[%clk
0:00:43]} 26... Kh7 {[%clk 0:00:09]} 27. h4 {[%clk 0:00:42.4]} 27... Nd3+ {[%clk
0:00:08.4]} 28. Ke2 {[%clk 0:00:39.9]} 28... g4 {[%clk 0:00:07.8]} 29. Ng5+
{[%clk 0:00:37.6]} 29... Kg6 {[%clk 0:00:07]} 30. Nxe4 {[%clk 0:00:36.9]} 30...
Nxe4 {[%clk 0:00:06.9]} 31. Rg8+ {[%clk 0:00:34.6]} 31... Kf5 {[%clk 0:00:06.6]}
32. Qd4 {[%clk 0:00:30.2]} 32... Qa4 {[%clk 0:00:01.8]} 33. Qd5+ {[%clk
0:00:29.8]} 33... Kf6 {[%clk 0:00:02]} 34. Rc1 {[%clk 0:00:26.4]} 1-0

[Event "Late-Titled-Tuesday-Blitz-June-04-2024"]
[Site "Chess.com"]
[Date "2024.06.04"]
[Round "5"]
[White "janhelmer03"]
[Black "RantomOpening"]
[Result "0-1"]
[WhiteElo "2398"]
[BlackElo "2563"]
[TimeControl "180+1"]
[EndTime "14:55:06 PDT"]
[Termination "RantomOpening won on time"]

1. Nf3 {[%clk 0:03:00.9]} 1... e6 {[%clk 0:02:57.2]} 2. e3 {[%clk 0:03:00.5]}
2... Nf6 {[%clk 0:02:54.8]} 3. b3 {[%clk 0:02:57.4]} 3... d5 {[%clk 0:02:54.4]}
4. Bb2 {[%clk 0:02:57.7]} 4... Be7 {[%clk 0:02:54.6]} 5. d4 {[%clk 0:02:58.1]}
5... O-O {[%clk 0:02:51.2]} 6. Bd3 {[%clk 0:02:58.5]} 6... c5 {[%clk 0:02:46.4]}
7. O-O {[%clk 0:02:56.7]} 7... b6 {[%clk 0:02:45.6]} 8. Nbd2 {[%clk 0:02:55.6]}
8... Bb7 {[%clk 0:02:45.3]} 9. Ne5 {[%clk 0:02:55.2]} 9... Nbd7 {[%clk
0:02:44.9]} 10. f4 {[%clk 0:02:55.4]} 10... Ne4 {[%clk 0:02:44.6]} 11. Nxd7
{[%clk 0:02:50.5]} 11... Qxd7 {[%clk 0:02:44.4]} 12. Nxe4 {[%clk 0:02:50]} 12...
dxe4 {[%clk 0:02:44.5]} 13. Be2 {[%clk 0:02:50.9]} 13... Rfd8 {[%clk 0:02:32.8]}
14. Qe1 {[%clk 0:02:24.5]} 14... f5 {[%clk 0:02:03.2]} 15. Rd1 {[%clk
0:02:20.5]} 15... Qe8 {[%clk 0:01:59.7]} 16. Qg3 {[%clk 0:02:10.1]} 16... Bf6
{[%clk 0:01:54.9]} 17. c3 {[%clk 0:01:17.1]} 17... Rac8 {[%clk 0:01:27.3]} 18.
Rd2 {[%clk 0:00:57.6]} 18... cxd4 {[%clk 0:01:23.2]} 19. cxd4 {[%clk 0:00:58.5]}
19... Rc7 {[%clk 0:01:21.2]} 20. a4 {[%clk 0:00:50.2]} 20... Bd5 {[%clk
0:01:17]} 21. Bd1 {[%clk 0:00:25.4]} 21... Rdc8 {[%clk 0:01:14.1]} 22. Rff2
{[%clk 0:00:15.8]} 22... Qe7 {[%clk 0:01:12.7]} 23. Rc2 {[%clk 0:00:14]} 23...
Bh4 {[%clk 0:01:09.7]} 24. Rxc7 {[%clk 0:00:09.3]} 24... Rxc7 {[%clk 0:01:10.6]}
25. Qh3 {[%clk 0:00:04.6]} 25... Bxf2+ {[%clk 0:01:09.4]} 26. Kxf2 {[%clk
0:00:05.5]} 26... Qb4 {[%clk 0:01:09.4]} 27. Qh5 {[%clk 0:00:03.6]} 27... g6
{[%clk 0:00:57.9]} 28. Qh4 {[%clk 0:00:03.4]} 28... Qe7 {[%clk 0:00:52.1]} 29.
Qxe7 {[%clk 0:00:01.6]} 29... Rxe7 {[%clk 0:00:51.6]} 30. Ke2 {[%clk 0:00:02.5]}
30... Rc7 {[%clk 0:00:50.7]} 31. Kd2 {[%clk 0:00:03.1]} 31... Kf7 {[%clk
0:00:47.2]} 32. Ba3 {[%clk 0:00:02.8]} 32... h6 {[%clk 0:00:44.7]} 33. Bd6
{[%clk 0:00:02.2]} 33... Rc6 {[%clk 0:00:43.9]} 34. Be5 {[%clk 0:00:02.5]} 34...
b5 {[%clk 0:00:39.6]} 35. axb5 {[%clk 0:00:02.1]} 35... Rb6 {[%clk 0:00:40.1]}
36. Be2 {[%clk 0:00:02.2]} 36... Bxb3 {[%clk 0:00:39.7]} 37. Kc3 {[%clk
0:00:02.9]} 37... Ba4 {[%clk 0:00:37.9]} 38. Kb4 {[%clk 0:00:03.1]} 38... Bxb5
{[%clk 0:00:38.2]} 39. Bxb5 {[%clk 0:00:02.8]} 39... a6 {[%clk 0:00:38.7]} 40.
Ka5 {[%clk 0:00:02.1]} 40... Rxb5+ {[%clk 0:00:39]} 41. Kxa6 {[%clk 0:00:02]}
41... Rb3 {[%clk 0:00:39.1]} 42. d5 {[%clk 0:00:01]} 42... exd5 {[%clk
0:00:37.1]} 43. Bd4 {[%clk 0:00:01.6]} 43... Rd3 {[%clk 0:00:38]} 0-1

[Event "Late-Titled-Tuesday-Blitz-June-04-2024"]
[Site "Chess.com"]
[Date "2024.06.04"]
[Round "5"]
[White "RebecaJimnz"]
[Black "N_Mullodzhanov"]
[Result "0-1"]
[WhiteElo "2288"]
[BlackElo "2516"]
[TimeControl "180+1"]
[EndTime "14:55:08 PDT"]
[Termination "N_Mullodzhanov won on time"]

1. e4 {[%clk 0:03:00.9]} 1... c6 {[%clk 0:02:59.9]} 2. d4 {[%clk 0:03:00.6]}
2... d5 {[%clk 0:03:00.3]} 3. exd5 {[%clk 0:03:00.8]} 3... cxd5 {[%clk
0:03:00.5]} 4. Bd3 {[%clk 0:03:00.6]} 4... Nc6 {[%clk 0:03:00.2]} 5. c3 {[%clk
0:03:01]} 5... Nf6 {[%clk 0:03:00.4]} 6. h3 {[%clk 0:02:55.7]} 6... g6 {[%clk
0:02:59.8]} 7. Nf3 {[%clk 0:02:55.2]} 7... Bg7 {[%clk 0:03:00.1]} 8. O-O {[%clk
0:02:54.9]} 8... O-O {[%clk 0:03:00.4]} 9. Bf4 {[%clk 0:02:51.7]} 9... Qb6
{[%clk 0:02:58.3]} 10. Qe2 {[%clk 0:02:36.5]} 10... a6 {[%clk 0:02:52.2]} 11.
Ne5 {[%clk 0:02:31.7]} 11... Ne4 {[%clk 0:02:42.6]} 12. Bxe4 {[%clk 0:01:53.6]}
12... dxe4 {[%clk 0:02:40.5]} 13. Nxc6 {[%clk 0:01:53.5]} 13... Qxc6 {[%clk
0:02:38.7]} 14. Nd2 {[%clk 0:01:53.4]} 14... f5 {[%clk 0:02:31.4]} 15. Qc4+
{[%clk 0:01:49]} 15... Qe6 {[%clk 0:02:15.8]} 16. d5 {[%clk 0:01:32.8]} 16...
Qf7 {[%clk 0:02:07.9]} 17. Nb3 {[%clk 0:01:26.4]} 17... e5 {[%clk 0:01:56.9]}
18. Be3 {[%clk 0:01:14.1]} 18... Rd8 {[%clk 0:01:53.2]} 19. Rad1 {[%clk
0:01:12.5]} 19... b5 {[%clk 0:01:48.1]} 20. Qc5 {[%clk 0:01:05]} 20... Bf8
{[%clk 0:01:45.9]} 21. Qb6 {[%clk 0:00:57.7]} 21... Rxd5 {[%clk 0:01:42]} 22.
Na5 {[%clk 0:00:50]} 22... Be6 {[%clk 0:01:24.6]} 23. Rxd5 {[%clk 0:00:33]}
23... Bxd5 {[%clk 0:01:24.5]} 24. Rd1 {[%clk 0:00:33]} 24... Bxa2 {[%clk
0:01:04.1]} 25. Qc6 {[%clk 0:00:21.3]} 25... Re8 {[%clk 0:00:59.6]} 26. Qxa6
{[%clk 0:00:18.6]} 26... f4 {[%clk 0:00:47]} 27. Bc1 {[%clk 0:00:15.4]} 27... b4
{[%clk 0:00:41.3]} 28. c4 {[%clk 0:00:15.2]} 28... b3 {[%clk 0:00:19.4]} 29. Bd2
{[%clk 0:00:13.4]} 29... f3 {[%clk 0:00:17.3]} 30. Bc3 {[%clk 0:00:11.3]} 30...
fxg2 {[%clk 0:00:13.1]} 31. Qb5 {[%clk 0:00:08.2]} 31... Bh6 {[%clk 0:00:06.6]}
32. Nc6 {[%clk 0:00:07.6]} 32... e3 {[%clk 0:00:06.7]} 33. f3 {[%clk 0:00:02]}
33... e2 {[%clk 0:00:03.9]} 0-1

[Event "Late-Titled-Tuesday-Blitz-June-04-2024"]
[Site "Chess.com"]
[Date "2024.06.04"]
[Round "5"]
[White "Pachonpower"]
[Black "Agustin_Meza"]
[Result "1-0"]
[WhiteElo "2373"]
[BlackElo "2177"]
[TimeControl "180+1"]
[EndTime "14:55:08 PDT"]
[Termination "Pachonpower won by checkmate"]

1. d4 {[%clk 0:03:00.9]} 1... e6 {[%clk 0:02:59.2]} 2. Nf3 {[%clk 0:03:01.8]}
2... d5 {[%clk 0:02:58.7]} 3. e3 {[%clk 0:03:02]} 3... c5 {[%clk 0:02:58.7]} 4.
Nbd2 {[%clk 0:03:02.9]} 4... cxd4 {[%clk 0:02:59.4]} 5. exd4 {[%clk 0:03:03.8]}
5... Nf6 {[%clk 0:03:00]} 6. c3 {[%clk 0:03:04.4]} 6... Be7 {[%clk 0:03:00.4]}
7. Bd3 {[%clk 0:03:05]} 7... O-O {[%clk 0:03:01.1]} 8. O-O {[%clk 0:03:05.5]}
8... Nc6 {[%clk 0:02:58]} 9. Qe2 {[%clk 0:03:05.6]} 9... a6 {[%clk 0:02:58.1]}
10. Ne5 {[%clk 0:03:05.1]} 10... Nxe5 {[%clk 0:02:52.7]} 11. dxe5 {[%clk
0:03:05]} 11... Nd7 {[%clk 0:02:53.3]} 12. f4 {[%clk 0:03:04.8]} 12... f5 {[%clk
0:02:52.9]} 13. exf6 {[%clk 0:03:02.7]} 13... Nxf6 {[%clk 0:02:52.6]} 14. g4
{[%clk 0:03:02.8]} 14... b5 {[%clk 0:02:43.9]} 15. g5 {[%clk 0:03:02.3]} 15...
Ne8 {[%clk 0:02:42.3]} 16. Rf3 {[%clk 0:02:58.7]} 16... g6 {[%clk 0:02:32.6]}
17. Rh3 {[%clk 0:02:50.7]} 17... Ng7 {[%clk 0:02:13.2]} 18. Nf3 {[%clk
0:02:47.3]} 18... Bb7 {[%clk 0:01:54.9]} 19. Ne5 {[%clk 0:02:46.2]} 19... Bc5+
{[%clk 0:01:44.9]} 20. Be3 {[%clk 0:02:43.4]} 20... Qb6 {[%clk 0:01:42.5]} 21.
Re1 {[%clk 0:02:40.4]} 21... Bxe3+ {[%clk 0:01:40]} 22. Qxe3 {[%clk 0:02:40.2]}
22... Qxe3+ {[%clk 0:01:37.8]} 23. Rexe3 {[%clk 0:02:41.1]} 23... Rxf4 {[%clk
0:01:33.7]} 24. Nd7 {[%clk 0:02:41.4]} 24... d4 {[%clk 0:01:16.5]} 25. cxd4
{[%clk 0:02:41]} 25... Rxd4 {[%clk 0:01:15.3]} 26. Nf6+ {[%clk 0:02:40.8]} 26...
Kf7 {[%clk 0:01:06.5]} 27. Rxh7 {[%clk 0:02:40.8]} 27... Rad8 {[%clk 0:01:06.7]}
28. Bc2 {[%clk 0:02:31.7]} 28... Rd2 {[%clk 0:00:55]} 29. Bb3 {[%clk 0:02:30.7]}
29... Rg2+ {[%clk 0:00:53.6]} 30. Kf1 {[%clk 0:02:27.7]} 30... Rxg5 {[%clk
0:00:51.2]} 31. Rxe6 {[%clk 0:02:15.3]} 31... Rf5+ {[%clk 0:00:38.8]} 32. Ke2
{[%clk 0:02:11.6]} 32... Rxf6 {[%clk 0:00:38.9]} 33. Rb6+ {[%clk 0:02:11.4]}
33... Kf8 {[%clk 0:00:31.4]} 34. Rxf6+ {[%clk 0:02:09.6]} 34... Ke7 {[%clk
0:00:21.3]} 35. Rf7+ {[%clk 0:02:08.7]} 35... Kd6 {[%clk 0:00:22.2]} 36. Rhxg7
{[%clk 0:02:06.6]} 36... Re8+ {[%clk 0:00:23.1]} 37. Kf2 {[%clk 0:02:06.5]}
37... Be4 {[%clk 0:00:23.8]} 38. Rd7+ {[%clk 0:02:04]} 38... Kc5 {[%clk
0:00:23.6]} 39. Rd2 {[%clk 0:02:03.9]} 39... Rf8+ {[%clk 0:00:22.8]} 40. Ke1
{[%clk 0:02:03.5]} 40... a5 {[%clk 0:00:23.2]} 41. Re2 {[%clk 0:02:03.1]} 41...
Bf5 {[%clk 0:00:22.9]} 42. Bc2 {[%clk 0:02:01.9]} 42... Bg4 {[%clk 0:00:20.2]}
43. Rf2 {[%clk 0:01:58.9]} 43... Rd8 {[%clk 0:00:19.1]} 44. Rxg6 {[%clk
0:01:56.8]} 44... Bd7 {[%clk 0:00:18.3]} 45. Rg5+ {[%clk 0:01:56.9]} 45... Kb6
{[%clk 0:00:18.2]} 46. Rf6+ {[%clk 0:01:56.1]} 46... Kc7 {[%clk 0:00:18.5]} 47.
Rc5+ {[%clk 0:01:55.4]} 47... Kb7 {[%clk 0:00:17.9]} 48. Be4+ {[%clk 0:01:55.6]}
48... Ka7 {[%clk 0:00:17.1]} 49. Rc7+ {[%clk 0:01:55.7]} 49... Kb8 {[%clk
0:00:16.8]} 50. Rb7+ {[%clk 0:01:56.1]} 50... Kc8 {[%clk 0:00:17.7]} 51. Rfb6
{[%clk 0:01:51.1]} 51... Re8 {[%clk 0:00:16.9]} 52. Rb8+ {[%clk 0:01:51.3]}
52... Kc7 {[%clk 0:00:17.8]} 53. R6b7+ {[%clk 0:01:50.4]} 53... Kd6 {[%clk
0:00:18.1]} 54. Rxe8 {[%clk 0:01:48.2]} 54... Bxe8 {[%clk 0:00:19]} 55. Ra7
{[%clk 0:01:47.5]} 55... Bd7 {[%clk 0:00:17]} 56. Bd3 {[%clk 0:01:47.5]} 56...
Ke5 {[%clk 0:00:17.9]} 57. Rxa5 {[%clk 0:01:47.5]} 57... Kd4 {[%clk 0:00:17.6]}
58. Bxb5 {[%clk 0:01:47.9]} 58... Be6 {[%clk 0:00:16.7]} 59. h4 {[%clk
0:01:43.3]} 59... Bg4 {[%clk 0:00:14.8]} 60. Be2 {[%clk 0:01:41.7]} 60... Be6
{[%clk 0:00:15.2]} 61. h5 {[%clk 0:01:41.8]} 61... Bg8 {[%clk 0:00:14.3]} 62. h6
{[%clk 0:01:42.1]} 62... Bh7 {[%clk 0:00:15.2]} 63. Ra7 {[%clk 0:01:42.2]} 63...
Bc2 {[%clk 0:00:15.3]} 64. Rg7 {[%clk 0:01:43.1]} 64... Ke3 {[%clk 0:00:15.4]}
65. Rg3+ {[%clk 0:01:41.4]} 65... Kf4 {[%clk 0:00:14.7]} 66. Rd3 {[%clk
0:01:41.1]} 66... Bxd3 {[%clk 0:00:07.6]} 67. Bxd3 {[%clk 0:01:42]} 67... Ke3
{[%clk 0:00:08.3]} 68. h7 {[%clk 0:01:42.2]} 68... Kf3 {[%clk 0:00:09.1]} 69.
h8=Q {[%clk 0:01:42.5]} 69... Kg3 {[%clk 0:00:09.3]} 70. Qe5+ {[%clk 0:01:42.6]}
70... Kf3 {[%clk 0:00:10]} 71. Qe4+ {[%clk 0:01:42.4]} 71... Kg3 {[%clk
0:00:09.7]} 72. Qf5 {[%clk 0:01:42.3]} 72... Kg2 {[%clk 0:00:08.6]} 73. Be4+
{[%clk 0:01:41.8]} 73... Kg1 {[%clk 0:00:07.2]} 74. Qg4+ {[%clk 0:01:40.7]}
74... Kh2 {[%clk 0:00:05.6]} 75. Qh4+ {[%clk 0:01:40.7]} 75... Kg1 {[%clk
0:00:04]} 76. Qf2# {[%clk 0:01:41.3]} 1-0

[Event "Late-Titled-Tuesday-Blitz-June-04-2024"]
[Site "Chess.com"]
[Date "2024.06.04"]
[Round "5"]
[White "Bond_7_7_7"]
[Black "DirtyKabab"]
[Result "1-0"]
[WhiteElo "2442"]
[BlackElo "2565"]
[TimeControl "180+1"]
[EndTime "14:55:15 PDT"]
[Termination "Bond_7_7_7 won on time"]

1. e4 {[%clk 0:02:59.4]} 1... e6 {[%clk 0:02:57]} 2. d4 {[%clk 0:02:58.5]} 2...
d5 {[%clk 0:02:55.8]} 3. e5 {[%clk 0:02:59.2]} 3... b6 {[%clk 0:02:53.3]} 4. c3
{[%clk 0:02:28.6]} 4... Qd7 {[%clk 0:02:53.6]} 5. Nf3 {[%clk 0:02:25.4]} 5...
Ba6 {[%clk 0:02:53.3]} 6. Bxa6 {[%clk 0:02:20.7]} 6... Nxa6 {[%clk 0:02:54.2]}
7. O-O {[%clk 0:02:20.2]} 7... c5 {[%clk 0:02:51.6]} 8. a4 {[%clk 0:02:18.5]}
8... Ne7 {[%clk 0:02:14.2]} 9. a5 {[%clk 0:02:15.8]} 9... Nc6 {[%clk 0:01:46.2]}
10. axb6 {[%clk 0:02:14.4]} 10... axb6 {[%clk 0:01:46.8]} 11. Qe2 {[%clk
0:02:11.3]} 11... c4 {[%clk 0:01:37.7]} 12. b3 {[%clk 0:02:07.1]} 12... b5
{[%clk 0:01:38.1]} 13. bxc4 {[%clk 0:02:06]} 13... bxc4 {[%clk 0:01:29.4]} 14.
Bg5 {[%clk 0:01:59.8]} 14... h6 {[%clk 0:01:19.9]} 15. Bh4 {[%clk 0:01:53.8]}
15... Be7 {[%clk 0:01:19.4]} 16. Bxe7 {[%clk 0:01:53.1]} 16... Kxe7 {[%clk
0:01:06.8]} 17. Nbd2 {[%clk 0:01:49.4]} 17... Nc7 {[%clk 0:01:03.8]} 18. Nh4
{[%clk 0:01:43]} 18... g5 {[%clk 0:00:44.7]} 19. Nhf3 {[%clk 0:01:41.5]} 19...
Rxa1 {[%clk 0:00:31.3]} 20. Rxa1 {[%clk 0:01:40.6]} 20... Ra8 {[%clk 0:00:32.2]}
21. Rf1 {[%clk 0:01:40.2]} 21... Ra3 {[%clk 0:00:27.3]} 22. Nb1 {[%clk
0:01:39.7]} 22... Rb3 {[%clk 0:00:26.2]} 23. Qc2 {[%clk 0:01:39]} 23... Qe8
{[%clk 0:00:09.9]} 24. Nfd2 {[%clk 0:01:37.3]} 24... Rb7 {[%clk 0:00:05.4]} 25.
f4 {[%clk 0:01:36.8]} 25... gxf4 {[%clk 0:00:03.9]} 26. Rxf4 {[%clk 0:01:36.3]}
26... Qg8 {[%clk 0:00:04.7]} 27. Nf3 {[%clk 0:01:31.9]} 27... Qg6 {[%clk
0:00:04.6]} 28. Qxg6 {[%clk 0:01:31.2]} 28... fxg6 {[%clk 0:00:05.5]} 29. Nbd2
{[%clk 0:01:20.3]} 29... Rb2 {[%clk 0:00:04.5]} 30. Kf2 {[%clk 0:01:15]} 30...
g5 {[%clk 0:00:04.7]} 31. Rg4 {[%clk 0:01:10.2]} 31... Nb5 {[%clk 0:00:05.4]}
32. h4 {[%clk 0:01:08.8]} 32... Nxc3 {[%clk 0:00:05]} 33. hxg5 {[%clk
0:01:01.4]} 33... hxg5 {[%clk 0:00:05.9]} 34. Ke3 {[%clk 0:00:59.5]} 34... Nb5
{[%clk 0:00:04.4]} 35. Rxg5 {[%clk 0:00:45.2]} 35... Nbxd4 {[%clk 0:00:05]} 36.
Nxd4 {[%clk 0:00:40]} 36... Nxd4 {[%clk 0:00:05.9]} 37. Nxc4 {[%clk 0:00:39]}
37... Nc2+ {[%clk 0:00:06.2]} 38. Kd3 {[%clk 0:00:38.3]} 38... dxc4+ {[%clk
0:00:07.1]} 39. Kc3 {[%clk 0:00:38.5]} 39... Ra2 {[%clk 0:00:07]} 40. Rg7+
{[%clk 0:00:37.3]} 40... Kf8 {[%clk 0:00:07]} 41. Rg6 {[%clk 0:00:36.9]} 41...
Kf7 {[%clk 0:00:06.1]} 42. Rf6+ {[%clk 0:00:36.7]} 42... Ke7 {[%clk 0:00:06.6]}
43. Rf2 {[%clk 0:00:35.5]} 43... Ra3+ {[%clk 0:00:04.3]} 44. Kxc4 {[%clk
0:00:35.4]} 44... Ne3+ {[%clk 0:00:04]} 45. Kd4 {[%clk 0:00:34.5]} 45... Nf5+
{[%clk 0:00:03.6]} 46. Ke4 {[%clk 0:00:34.6]} 46... Rg3 {[%clk 0:00:03.5]} 47.
Kf4 {[%clk 0:00:30.7]} 47... Kf7 {[%clk 0:00:03.5]} 48. Rb2 {[%clk 0:00:28.6]}
48... Kg6 {[%clk 0:00:03]} 49. Rb6 {[%clk 0:00:27.1]} 1-0

[Event "Late-Titled-Tuesday-Blitz-June-04-2024"]
[Site "Chess.com"]
[Date "2024.06.04"]
[Round "5"]
[White "Heliosis11"]
[Black "mfschulz"]
[Result "0-1"]
[WhiteElo "2393"]
[BlackElo "2255"]
[TimeControl "180+1"]
[EndTime "14:55:17 PDT"]
[Termination "mfschulz won by resignation"]

1. c4 {[%clk 0:02:51.8]} 1... e5 {[%clk 0:02:59.5]} 2. Nc3 {[%clk 0:02:50.6]}
2... Nf6 {[%clk 0:02:59.4]} 3. g3 {[%clk 0:02:50.8]} 3... d5 {[%clk 0:02:59.5]}
4. cxd5 {[%clk 0:02:50.9]} 4... Nxd5 {[%clk 0:02:59.6]} 5. Bg2 {[%clk
0:02:51.5]} 5... Nb6 {[%clk 0:02:59.7]} 6. Nf3 {[%clk 0:02:51.5]} 6... Nc6
{[%clk 0:02:59.9]} 7. d3 {[%clk 0:02:50.2]} 7... Be7 {[%clk 0:03:00]} 8. O-O
{[%clk 0:02:50.3]} 8... O-O {[%clk 0:03:00]} 9. b3 {[%clk 0:02:26.6]} 9... f5
{[%clk 0:02:54.2]} 10. Bb2 {[%clk 0:02:22.5]} 10... Bf6 {[%clk 0:02:44.4]} 11.
e3 {[%clk 0:02:07.6]} 11... a5 {[%clk 0:02:36.6]} 12. Qc2 {[%clk 0:01:53.6]}
12... Nb4 {[%clk 0:02:34.5]} 13. Qe2 {[%clk 0:01:49]} 13... Nxd3 {[%clk
0:02:33.2]} 14. Rad1 {[%clk 0:01:46.7]} 14... e4 {[%clk 0:02:33.3]} 15. Ne1
{[%clk 0:01:46.8]} 15... a4 {[%clk 0:02:09.1]} 16. Nxd3 {[%clk 0:01:31]} 16...
exd3 {[%clk 0:02:08.2]} 17. Rxd3 {[%clk 0:01:31.9]} 17... Qe7 {[%clk 0:02:05.4]}
18. Nd5 {[%clk 0:01:31.5]} 18... Nxd5 {[%clk 0:02:04.8]} 19. Bxd5+ {[%clk
0:01:32.4]} 19... Kh8 {[%clk 0:02:01]} 20. Rc1 {[%clk 0:01:27.2]} 20... c6
{[%clk 0:01:59]} 21. Bg2 {[%clk 0:01:13.2]} 21... axb3 {[%clk 0:01:58.9]} 22.
Bxf6 {[%clk 0:01:13.3]} 22... Qxf6 {[%clk 0:01:52.6]} 23. Rxb3 {[%clk
0:01:11.2]} 23... h6 {[%clk 0:01:48.6]} 24. h4 {[%clk 0:00:59.7]} 24... Qf7
{[%clk 0:01:43.2]} 25. Qb2 {[%clk 0:00:56.5]} 25... Rd8 {[%clk 0:01:39.3]} 26.
a3 {[%clk 0:00:41.6]} 26... Qe7 {[%clk 0:01:36.1]} 27. Rb4 {[%clk 0:00:34.2]}
27... Ra7 {[%clk 0:01:30.8]} 28. e4 {[%clk 0:00:23.7]} 28... f4 {[%clk
0:01:29.1]} 29. e5 {[%clk 0:00:19.9]} 29... fxg3 {[%clk 0:01:27.7]} 30. fxg3
{[%clk 0:00:20.8]} 30... Be6 {[%clk 0:01:19]} 31. Rf4 {[%clk 0:00:18.8]} 31...
Qxa3 {[%clk 0:01:13.2]} 32. Qf2 {[%clk 0:00:18.5]} 32... Qxc1+ {[%clk
0:01:11.3]} 33. Kh2 {[%clk 0:00:18.2]} 33... Rd2 {[%clk 0:01:03.5]} 34. Rf8+
{[%clk 0:00:17.5]} 34... Kh7 {[%clk 0:01:02.9]} 35. Qf4 {[%clk 0:00:17.8]} 35...
Rxg2+ {[%clk 0:01:00.3]} 36. Kxg2 {[%clk 0:00:17.6]} 36... Qxf4 {[%clk
0:01:00.1]} 37. gxf4 {[%clk 0:00:18.5]} 37... Ra3 {[%clk 0:00:55.6]} 38. f5
{[%clk 0:00:18.6]} 38... Bd5+ {[%clk 0:00:52.8]} 39. Kh2 {[%clk 0:00:19.2]}
39... Re3 {[%clk 0:00:51.1]} 40. e6 {[%clk 0:00:19.3]} 40... b5 {[%clk
0:00:50.1]} 41. Rd8 {[%clk 0:00:16.5]} 41... b4 {[%clk 0:00:48.2]} 42. Rb8
{[%clk 0:00:16.4]} 42... b3 {[%clk 0:00:48.1]} 43. Kg1 {[%clk 0:00:15.2]} 43...
Re5 {[%clk 0:00:47.8]} 44. h5 {[%clk 0:00:10.1]} 44... Rxf5 {[%clk 0:00:35.8]}
45. e7 {[%clk 0:00:09.8]} 45... Bf7 {[%clk 0:00:35.9]} 46. e8=Q {[%clk
0:00:10.3]} 46... Bxe8 {[%clk 0:00:35.6]} 47. Rxe8 {[%clk 0:00:11.2]} 47... c5
{[%clk 0:00:34.9]} 48. Rb8 {[%clk 0:00:10.5]} 48... c4 {[%clk 0:00:34.3]} 49.
Kg2 {[%clk 0:00:11]} 49... Rxh5 {[%clk 0:00:32.8]} 50. Rb4 {[%clk 0:00:11.2]}
50... Rc5 {[%clk 0:00:32.3]} 0-1